bitfinex/quotes_ETHUSD_20250406
["timestamp","ask_amount","ask_price","bid_price","bid_amount"]
[1743915931325,4.63055161,1810.8,1810.4,6.000526]
[1743915931488,4.63055161,1810.8,1810.5,0.80199347]
[1743915931788,4.63055161,1810.8,1810.5,0.97474783]
[1743915932268,4.63055161,1810.8,1810.6,0.17275436]
[1743915932527,4.63055161,1810.8,1810.7,0.80196791]
[1743915932690,6.48635304,1810.8,1810.7,0.80196791]
[1743915932898,13.35204304,1810.8,1810.7,0.80196791]
[1743915933325,13.35204304,1810.8,1810.5,0.17275709]
[1743915933629,13.35204304,1810.8,1810.6,0.80196791]
[1743915934420,17.21789304,1810.8,1810.4,0.7738]
[1743915934625,17.21789304,1810.8,1810.7,0.80196791]
[1743915934826,17.21789304,1810.8,1810.4,0.7738]
[1743915935020,13.35204304,1810.8,1810.4,0.7738]
[1743915935429,13.35204304,1810.8,1810.5,0.9747339]
[1743915935605,11.49624161,1810.8,1810.5,0.9747339]
[1743915939233,3.86591,1810.7,1810.5,0.9747339]
[1743915939433,4.14801,1810.7,1810.5,0.9747339]
[1743915940125,4.14801,1810.7,1810.5,0.80196791]
[1743915940500,0.2821,1810.7,1810.5,0.80196791]
[1743915940830,11.49624161,1810.8,1810.5,0.9747339]
[1743915941933,15.36208161,1810.8,1810.5,0.9747339]
[1743915942241,15.36208161,1810.8,1810.5,0.80196791]
[1743915943036,15.36208161,1810.8,1810.5,0.97473496]
[1743915943939,15.36208161,1810.8,1810.5,0.80196791]
[1743915944710,15.36208161,1810.8,1810.5,0.97473509]
[1743915947663,11.49624161,1810.8,1810.5,0.97473509]
[1743915947941,2.53360897,1810.7,1810.5,0.80196791]
[1743915948809,2.53360897,1810.7,1810.5,0.97473426]
[1743915950345,2.53360897,1810.7,1810.5,0.80196791]
[1743915951848,6.39954897,1810.7,1810.5,0.80196791]
[1743915952348,10.26562897,1810.7,1810.5,0.80196791]
[1743915954320,6.39954897,1810.7,1810.5,0.80196791]
[1743915954521,10.26561897,1810.7,1810.5,0.80196791]
[1743915959764,3.86612,1810.6,1810.5,0.80196791]
[1743915959930,3.86612,1810.6,1810.5,0.97474228]
[1743915961041,7.9208969,1810.6,1810.5,0.97474228]
[1743915961344,8.2029969,1810.6,1810.5,0.17277437]
[1743915961661,3.86663,1810.4,1810.1,5.9731]
[1743915961844,2.53360897,1810.3,1810.1,5.9731]
[1743915962019,2.53360897,1810.3,1810.2,0.96965321]
[1743915968369,3.56030687,1810.3,1810.2,0.96965321]
[1743915969259,2.53360897,1810.3,1810.2,0.96965321]
[1743915972981,2.94901999,1810.3,1810.2,0.96965321]
[1743915978683,12.31414169,1810.5,1810.2,1.73485321]
[1743915979185,12.31414169,1810.5,1810.3,0.17278814]
[1743915979383,15.31414169,1810.5,1810.4,0.79770873]
[1743915979588,16.5580718,1810.5,1810.2,0.7652]
[1743915979886,15.31414169,1810.5,1810.3,0.79770873]
[1743915980183,11.44773169,1810.5,1810.3,0.79770873]
[1743915981592,11.44773169,1810.5,1810.4,0.17278358]
[1743915981904,11.44773169,1810.5,1810.4,0.97118254]
[1743915982054,11.44773169,1810.5,1810.4,0.17278358]
[1743915982578,11.44773169,1810.5,1810.4,0.97118254]
[1743915983893,15.31406169,1810.5,1810.4,0.97118254]
[1743915984192,17.36577355,1810.5,1810.4,0.97118254]
[1743915984391,17.36577355,1810.5,1810.4,0.79839896]
[1743915984614,3.86656,1810.4,1810.2,0.7652]
[1743915984757,3.86656,1810.4,1810.3,0.79839896]
[1743915984957,3.86656,1810.4,1810.3,0.97119082]
[1743915985412,6.27189336,1810.4,1810.3,0.97119082]
[1743915987773,6.27189336,1810.4,1810.3,0.79839896]
[1743915988067,6.86697,1810.2,1810.1,0.1]
[1743915988270,9.68267897,1810.2,1810.1,0.1]
[1743915988686,9.68267897,1810.2,1810.1,0.27281301]
[1743915988900,11.03762587,1810.2,1810.1,0.27281301]
[1743915991200,11.03762587,1810.2,1810.1,1.07261846]
[1743915993317,11.03762587,1810.2,1810.1,0.89980545]
[1743916000996,11.03375879,1810.2,1810.1,0.89980545]
[1743916005303,16.94788151,1810.2,1810.1,0.89980545]
[1743916011518,16.66578151,1810.2,1810.1,0.89980545]
[1743916012229,15.31083461,1810.2,1810.1,0.89980545]
[1743916026670,15.59293461,1810.2,1810.1,0.89980545]
[1743916032929,15.59293461,1810.2,1810.1,0.81090545]
[1743916033559,15.59293461,1810.2,1810.1,0.77640545]
[1743916034187,3.86761,1809.9,1809.8,0.7909]
[1743916034800,9.78797997,1809.9,1809.8,0.17283345]
[1743916035090,3.86804,1809.7,1809.6,0.8252]
[1743916035239,6.40164897,1809.7,1809.6,0.8252]
[1743916035442,6.40164897,1809.7,1809.6,0.99806478]
[1743916037365,6.80688169,1809.7,1809.6,0.99806478]
[1743916038548,6.80688169,1809.7,1809.6,0.17286478]
[1743916039249,6.80688169,1809.7,1809.6,0.8252]
[1743916039905,6.80688169,1809.7,1809.6,0.99806054]
[1743916041488,6.80688169,1809.7,1809.6,1.79814172]
[1743916042282,6.80688169,1809.7,1809.6,1.62528118]
[1743916050095,6.80688169,1809.7,1809.6,1.79814026]
[1743916050294,6.80688169,1809.7,1809.6,1.62528118]
[1743916050494,6.80688169,1809.7,1809.6,0.80008118]
[1743916050886,3.86825,1809.6,1809.5,0.7972]
[1743916051086,3.86825,1809.6,1809.5,1.59723001]
[1743916051697,3.86825,1809.6,1809.5,1.77009983]
[1743916052980,3.86825,1809.6,1809.5,0.97289983]
[1743916053305,7.93576317,1809.6,1809.5,0.80003001]
[1743916053705,7.73822,1809.3,1809.2,0.17287966]
[1743916054025,10.27182897,1809.3,1809.2,0.17287966]
[1743916054518,3.86911,1809.2,1809.1,0.1]
[1743916054919,3.86911,1809.2,1809.1,0.2729082]
[1743916055216,4.28391675,1809.2,1809.1,0.2729082]
[1743916056731,4.28391675,1809.2,1809.1,0.1]
[1743916059622,5.94399259,1809.2,1809.1,0.1]
[1743916059826,9.22609259,1809.2,1809.1,0.1]
[1743916061391,9.22609259,1809.2,1809.1,0.83675246]
[1743916062024,9.22609259,1809.2,1808.6,0.17293864]
[1743916062025,3.87018,1808.7,1808.6,0.17293864]
[1743916062382,3.87018,1808.7,1808.6,0.96203864]
[1743916062585,3.87018,1808.7,1808.6,0.7891]
[1743916063814,4.28662071,1808.7,1808.6,0.7891]
[1743916066752,0.41644071,1808.7,1808.6,0.7891]
[1743916067057,3.87018,1808.7,1808.6,0.7891]
[1743916068157,4.29410133,1808.7,1808.6,0.7891]
[1743916069558,4.29410133,1808.7,1808.6,1.40503755]
[1743916072349,0.42392133,1808.7,1808.6,1.40503755]
[1743916072547,12.31777169,1808.8,1808.6,1.40503755]
[1743916073053,16.18789169,1808.8,1808.6,1.40503755]
[1743916073233,12.31777169,1808.8,1808.6,1.40503755]
[1743916073432,16.18790169,1808.8,1808.6,1.40503755]
[1743916073633,17.80669186,1808.8,1808.6,1.40503755]
[1743916074952,17.80672186,1808.8,1808.6,1.40503755]
[1743916077771,13.93656186,1808.8,1808.6,1.40503755]
[1743916078069,8.44773169,1808.8,1808.6,1.40503755]
[1743916078471,5.91412272,1808.8,1808.6,1.40503755]
[1743916079041,5.91412272,1808.8,1808.7,3.87018]
[1743916079237,5.91412272,1808.8,1808.7,5.27628997]
[1743916079453,5.91412272,1808.8,1808.7,5.44921553]
[1743916079962,3.87125,1808.2,1808.1,0.1]
[1743916080150,3.87111,1808.3,1808.1,0.1]
[1743916080355,3.0,1808.3,1808.2,0.7895]
[1743916080564,3.87071,1808.5,1808.2,0.7895]
[1743916080755,3.87044,1808.6,1808.2,4.66066]
[1743916080951,4.2956179,1808.7,1808.3,4.66323]
[1743916081163,9.78415272,1808.8,1808.4,4.66313]
[1743916081476,9.78415272,1808.8,1808.5,0.7924]
[1743916081685,5.91412272,1808.8,1808.5,4.6629]
[1743916081992,5.91412272,1808.8,1808.6,0.4122278]
[1743916083050,5.91412272,1808.8,1808.7,0.7996]
[1743916083462,6.86954,1809.0,1808.7,1.2118278]
[1743916083667,3.86954,1809.0,1808.7,1.2118278]
[1743916083862,10.19807947,1809.2,1808.8,0.7996]
[1743916084066,14.06737947,1809.2,1808.8,0.7996]
[1743916084268,14.06737947,1809.2,1808.9,0.4122278]
[1743916084444,14.06737947,1809.2,1808.8,0.7996]
[1743916084646,14.06737947,1809.2,1808.9,0.4122278]
[1743916084844,14.06737947,1809.2,1808.8,0.7996]
[1743916085090,14.06737947,1809.2,1808.9,0.4122278]
[1743916085258,14.06737947,1809.2,1808.8,0.7996]
[1743916085458,14.06737947,1809.2,1808.9,0.4122278]
[1743916085662,14.06737947,1809.2,1808.8,2.25670778]
[1743916085859,14.06737947,1809.2,1808.9,0.4122278]
[1743916086060,10.19807947,1809.2,1808.8,6.12660778]
[1743916086276,10.19807947,1809.2,1808.9,0.4122278]
[1743916086492,10.19807947,1809.2,1808.8,6.12660778]
[1743916086691,10.19807947,1809.2,1808.9,0.4122278]
[1743916086886,10.19807947,1809.2,1808.8,6.12660778]
[1743916087111,10.19807947,1809.2,1808.9,0.4122278]
[1743916087513,10.19807947,1809.2,1808.8,6.12660778]
[1743916087696,10.19807947,1809.2,1809.0,0.4122278]
[1743916087898,10.19807947,1809.2,1808.8,6.12660778]
[1743916088102,10.19807947,1809.2,1808.9,0.4122278]
[1743916088390,10.19807947,1809.2,1808.8,6.12660778]
[1743916088609,10.19807947,1809.2,1809.0,0.4122278]
[1743916088781,10.19807947,1809.2,1808.8,6.12660778]
[1743916088976,10.19807947,1809.2,1809.1,0.4122278]
[1743916089172,9.78327272,1809.2,1808.8,8.53932]
[1743916089372,5.91412272,1809.2,1809.1,0.4122278]
[1743916089572,5.91412272,1809.2,1808.8,8.53932]
[1743916089772,5.91412272,1809.2,1809.1,0.4122278]
[1743916090297,5.91412272,1809.2,1808.8,8.53932]
[1743916090503,5.91412272,1809.2,1808.9,0.4122278]
[1743916090820,9.78323272,1809.2,1808.8,8.53932]
[1743916090966,9.78323272,1809.2,1809.0,0.4122278]
[1743916091312,9.78323272,1809.2,1809.1,0.4122278]
[1743916091603,9.78323272,1809.2,1808.8,6.12647578]
[1743916092071,9.78323272,1809.2,1808.9,0.4122278]
[1743916092273,9.78323272,1809.2,1808.8,6.12647578]
[1743916092475,10.19907388,1809.2,1808.9,0.4122278]
[1743916092686,10.19907388,1809.2,1808.8,6.12647578]
[1743916092893,9.78323272,1809.2,1808.9,0.4122278]
[1743916093094,9.78323272,1809.2,1808.8,6.12647578]
[1743916093409,9.78323272,1809.2,1808.9,0.58513974]
[1743916093608,9.78323272,1809.2,1809.0,0.17291194]
[1743916094205,9.78323272,1809.2,1809.1,0.4122278]
[1743916094800,9.78323272,1809.2,1808.8,6.12647578]
[1743916095002,9.78323272,1809.2,1809.1,0.41168621]
[1743916095202,9.78323272,1809.2,1808.9,0.17291212]
[1743916095381,9.78323272,1809.2,1809.1,0.41168621]
[1743916095580,5.91412272,1809.2,1808.8,4.66942]
[1743916095791,6.31979279,1809.4,1809.1,1.23548621]
[1743916095988,5.91412272,1809.4,1809.2,4.04199795]
[1743916096189,5.91412272,1809.4,1809.2,4.45368416]
[1743916096922,5.91412272,1809.4,1809.3,0.17288795]
[1743916097276,5.91412272,1809.4,1809.3,0.41168621]
[1743916097634,5.91412272,1809.4,1809.1,4.69297]
[1743916097976,5.91412272,1809.4,1809.2,0.58457913]
[1743916098622,9.78291272,1809.4,1809.2,0.41168621]
[1743916098919,9.78291272,1809.4,1809.1,0.8238]
[1743916099212,9.78291272,1809.4,1809.2,0.41168621]
[1743916099416,11.61236868,1809.4,1809.2,0.58457803]
[1743916099720,11.61236868,1809.4,1809.3,0.41168621]
[1743916101105,5.91412272,1809.4,1809.3,0.41168621]
[1743916103112,5.91412272,1809.4,1809.1,4.69304]
[1743916103313,5.91412272,1809.4,1809.2,0.5834581]
[1743916105326,7.15016,1809.7,1809.3,0.7986]
[1743916105636,11.96579946,1809.8,1809.4,4.27856918]
[1743916105842,13.78200168,1809.8,1809.4,4.27856918]
[1743916106028,3.86806,1809.7,1809.4,0.40988918]
[1743916106430,3.86806,1809.7,1809.5,0.40988918]
[1743916106742,3.86806,1809.7,1809.3,4.66738]
[1743916106943,3.86806,1809.7,1809.6,0.40988918]
[1743916107241,5.24626817,1809.7,1809.6,0.40988918]
[1743916107442,5.24626817,1809.7,1809.3,4.66738]
[1743916107657,3.86806,1809.7,1809.4,0.40988918]
[1743916107812,3.86806,1809.7,1809.3,8.53616]
[1743916108140,3.86806,1809.7,1809.4,0.58275283]
[1743916108847,0.41194564,1809.7,1809.4,0.58275283]
[1743916109046,9.91402168,1809.8,1809.4,0.58275283]
[1743916109435,9.91402168,1809.8,1809.4,0.40988918]
[1743916109650,9.91402168,1809.8,1809.3,8.53616]
[1743916109819,9.91402168,1809.8,1809.4,0.40988918]
[1743916110020,0.99140217,1809.7,1809.3,8.53616]
[1743916110352,13.78201168,1809.8,1809.4,0.40988918]
[1743916110553,9.91402168,1809.8,1809.4,4.27853918]
[1743916110728,9.91402168,1809.8,1809.4,7.73721]
[1743916110927,5.91412272,1809.9,1809.6,4.63594]
[1743916111255,5.91412272,1809.9,1809.7,4.2772078]
[1743916111552,5.91412272,1809.9,1809.8,0.7678]
[1743916111756,0.42028579,1810.1,1809.8,4.63563]
[1743916112122,0.42028579,1810.1,1809.9,0.4093478]
[1743916112453,6.11737659,1810.1,1810.0,0.40860977]
[1743916112628,2.25014659,1810.1,1809.8,0.7678]
[1743916112955,2.25014659,1810.1,1809.9,0.40860977]
[1743916113450,2.25014659,1810.1,1809.8,0.7678]
[1743916113632,2.25014659,1810.1,1810.0,0.40831462]
[1743916114144,2.25014659,1810.1,1809.8,0.7678]
[1743916114339,2.25014659,1810.1,1810.0,0.40831462]
[1743916114649,2.25014659,1810.1,1809.8,0.7678]
[1743916114841,0.42028579,1810.1,1810.0,0.40831462]
[1743916115037,0.42028579,1810.1,1809.8,0.7678]
[1743916115542,0.42028579,1810.1,1809.9,0.40831462]
[1743916115849,0.42028579,1810.1,1809.8,0.7678]
[1743916116242,0.42028579,1810.1,1809.9,0.40831462]
[1743916116622,0.42028579,1810.1,1809.8,0.7678]
[1743916116925,0.42028579,1810.1,1809.8,5.485841]
[1743916117120,0.42028579,1810.1,1809.9,0.40666642]
[1743916117453,0.42028579,1810.1,1809.8,5.485841]
[1743916117667,0.42028579,1810.1,1810.0,0.40666642]
[1743916117856,0.42028579,1810.1,1809.8,9.353511]
[1743916118055,0.42028579,1810.1,1810.0,0.40666642]
[1743916118752,0.42028579,1810.1,1809.8,5.485831]
[1743916119051,0.42028579,1810.1,1810.0,0.40666642]
[1743916119252,0.42028579,1810.1,1809.8,4.63547]
[1743916119453,0.42028579,1810.1,1810.0,0.40666642]
[1743916119635,0.42028579,1810.1,1809.8,4.63547]
[1743916119836,0.42028579,1810.1,1810.0,0.40666642]
[1743916120039,0.42028579,1810.1,1809.8,4.63547]
[1743916120224,0.42028579,1810.1,1810.0,0.40666642]
[1743916120424,0.42028579,1810.1,1809.8,4.63547]
[1743916120656,0.42028579,1810.1,1810.0,0.40666642]
[1743916121162,0.42028579,1810.1,1809.8,4.63547]
[1743916121363,0.42028579,1810.1,1810.0,0.40666642]
[1743916121563,0.42028579,1810.1,1809.8,4.63547]
[1743916121860,7.56956579,1810.1,1810.0,0.40666642]
[1743916122063,13.5346211,1810.1,1809.6,4.65884]
[1743916122260,13.2526211,1810.1,1809.7,0.7906]
[1743916122451,13.2526211,1810.1,1809.7,5.06515642]
[1743916123652,17.1199711,1810.1,1809.7,5.06515642]
[1743916124360,17.1199711,1810.1,1809.7,1.19726642]
[1743916124665,3.86743,1810.0,1809.7,1.19726642]
[1743916124969,8.09761946,1809.9,1809.7,0.40666642]
[1743916125263,8.09761946,1809.9,1809.5,4.65888]
[1743916125465,8.09761946,1809.9,1809.5,9.78788]
[1743916125643,8.09761946,1809.9,1809.6,0.4067402]
[1743916125842,8.09761946,1809.9,1809.6,0.57958138]
[1743916126567,8.09761946,1809.9,1809.6,0.4067402]
[1743916129570,8.09761946,1809.9,1809.7,0.17284102]
[1743916129863,9.49353492,1809.9,1809.7,0.17284102]
[1743916130063,9.49353492,1809.9,1809.8,0.40681395]
[1743916130430,3.8679,1809.8,1809.6,0.17285039]
[1743916130828,3.8679,1809.8,1809.5,0.7906]
[1743916131176,7.7359,1809.8,1809.5,0.7906]
[1743916131373,8.09803946,1809.7,1809.4,0.78]
[1743916131547,3.86828,1809.6,1809.4,0.78]
[1743916131747,3.86828,1809.6,1809.3,5.126]
[1743916132081,3.86828,1809.6,1809.4,0.17286888]
[1743916132576,4.22998946,1809.5,1809.2,0.78]
[1743916132776,8.09849946,1809.5,1809.2,0.78]
[1743916132948,8.09849946,1809.5,1809.3,0.17287466]
[1743916133559,8.09849946,1809.5,1809.2,0.78]
[1743916133876,11.96712946,1809.5,1809.2,0.78]
[1743916134038,13.48736111,1809.5,1809.0,9.78252]
[1743916134240,18.16335218,1809.5,1809.0,9.78252]
[1743916134978,18.16335218,1809.5,1809.1,0.17288241]
[1743916135680,18.16335218,1809.5,1809.0,9.78252]
[1743916135681,18.16335218,1809.5,1809.2,0.17288241]
[1743916135850,14.29472218,1809.5,1809.2,0.17288241]
[1743916136050,14.01262218,1809.5,1809.3,0.17288241]
[1743916136450,14.01262218,1809.5,1809.1,7.73834]
[1743916136650,14.01262218,1809.5,1809.1,7.73837]
[1743916136852,14.01262218,1809.5,1809.1,9.103907]
[1743916137056,14.01262218,1809.5,1809.2,0.17287655]
[1743916137451,14.01262218,1809.5,1809.3,0.17287655]
[1743916137967,5.91412272,1809.5,1809.3,0.78]
[1743916138132,5.91412272,1809.5,1809.4,0.17286625]
[1743916138336,6.86824,1809.7,1809.4,0.17286625]
[1743916139188,6.86824,1809.7,1809.3,4.64879]
[1743916139489,6.86824,1809.7,1809.3,5.500578]
[1743916140207,6.86824,1809.7,1809.4,0.17286272]
[1743916140796,6.86824,1809.7,1809.3,5.500578]
[1743916141098,10.73644,1809.7,1809.3,5.500578]
[1743916141280,10.73644,1809.7,1809.4,0.40819142]
[1743916141681,10.73644,1809.7,1809.5,0.40819142]
[1743916142083,10.73644,1809.7,1809.4,0.17286523]
[1743916142585,10.73644,1809.7,1809.5,0.40819142]
[1743916143008,10.73644,1809.7,1809.3,4.64879]
[1743916143177,10.73644,1809.7,1809.6,0.40819142]
[1743916143378,10.73644,1809.7,1809.3,4.64879]
[1743916143590,10.73644,1809.7,1809.4,0.40819142]
[1743916143791,10.73644,1809.7,1809.4,0.58105678]
[1743916144011,10.73644,1809.7,1809.4,0.17286536]
[1743916144207,10.73644,1809.7,1809.5,0.40819142]
[1743916144519,6.8682,1809.7,1809.3,4.64879]
[1743916144817,6.8682,1809.7,1809.4,0.40819142]
[1743916145214,6.8682,1809.7,1809.3,4.64879]
[1743916145401,6.8682,1809.7,1809.5,0.40819142]
[1743916145580,6.8682,1809.7,1809.4,0.17286432]
[1743916145780,6.8682,1809.7,1809.5,0.40819142]
[1743916146215,6.8682,1809.7,1809.3,4.64879]
[1743916146526,6.8682,1809.7,1809.6,0.40819142]
[1743916146692,8.95621422,1809.7,1809.3,4.64879]
[1743916146886,6.8682,1809.7,1809.6,0.40819142]
[1743916147507,6.8682,1809.7,1809.4,0.17286356]
[1743916147728,6.8682,1809.7,1809.6,0.40819142]
[1743916147907,6.8682,1809.7,1809.3,4.64879]
[1743916148108,6.8682,1809.7,1809.6,0.40819142]
[1743916148326,2.08801422,1809.7,1809.4,3.86865]
[1743916148506,9.78199272,1809.8,1809.5,0.7875]
[1743916148815,9.78199272,1809.8,1809.6,0.40792083]
[1743916151295,3.86804,1809.7,1809.6,0.40792083]
[1743916151486,3.86804,1809.7,1809.5,0.17285654]
[1743916151690,3.86804,1809.7,1809.6,0.4073059]
[1743916151894,13.65003272,1809.8,1809.6,0.4073059]
[1743916152175,14.36791499,1809.8,1809.4,9.00166]
[1743916152376,13.65003272,1809.8,1809.5,0.4073059]
[1743916153415,3.86804,1809.7,1809.5,0.4073059]
[1743916155617,3.86804,1809.7,1809.6,0.17285662]
[1743916156188,3.86804,1809.7,1809.6,0.4073059]
[1743916156712,9.78199272,1809.8,1809.4,9.00167]
[1743916156909,13.64997272,1809.8,1809.6,0.4073059]
[1743916157121,15.76617894,1809.8,1809.5,0.17285506]
[1743916157317,18.76617894,1809.8,1809.7,0.4073059]
[1743916157826,14.89819894,1809.8,1809.4,9.00167]
[1743916158009,12.78199272,1809.8,1809.7,0.4073059]
[1743916158218,12.78199272,1809.8,1809.4,9.00167]
[1743916158389,12.78199272,1809.8,1809.7,0.4073059]
[1743916158589,12.78199272,1809.8,1809.4,9.00167]
[1743916158891,12.78199272,1809.8,1809.5,0.58015971]
[1743916159426,12.78199272,1809.8,1809.6,0.17285381]
[1743916159718,2.53634906,1809.7,1809.6,0.17285381]
[1743916160094,2.53634906,1809.7,1809.6,0.58015971]
[1743916160301,2.53634906,1809.7,1809.6,0.17285381]
[1743916160618,5.91412272,1809.8,1809.6,1.40975971]
[1743916160784,5.91412272,1809.8,1809.7,3.86804]
[1743916160988,2.53634906,1810.0,1809.7,3.86804]
[1743916160989,6.40375906,1810.0,1809.7,4.4482489]
[1743916161413,6.40375906,1810.0,1809.8,0.17285381]
[1743916161619,6.40375906,1810.0,1809.8,0.5801843]
[1743916161929,6.40375906,1810.0,1809.9,0.17285381]
[1743916162405,6.40375906,1810.0,1809.9,0.5801843]
[1743916163733,8.09351502,1810.0,1809.9,0.40733049]
[1743916164038,8.09351502,1810.0,1809.7,3.86804]
[1743916164205,8.09351502,1810.0,1809.9,0.40733049]
[1743916164412,8.09351502,1810.0,1809.8,0.386804]
[1743916164633,8.09351502,1810.0,1809.9,0.40733049]
[1743916165019,8.09351502,1810.0,1809.8,0.386804]
[1743916165733,4.22610502,1810.0,1809.8,0.386804]
[1743916166936,4.64639081,1810.1,1809.9,0.7775]
[1743916167134,4.22610502,1810.2,1809.9,4.70034897]
[1743916167316,4.22610502,1810.2,1810.0,0.87684889]
[1743916171932,8.09317502,1810.2,1810.0,0.40681399]
[1743916172297,8.09317502,1810.2,1809.9,0.7775]
[1743916172837,8.09317502,1810.2,1810.0,0.40681399]
[1743916173231,4.22610502,1810.2,1810.0,0.40681399]
[1743916175333,8.09308502,1810.2,1810.0,0.40681399]
[1743916175515,8.37518502,1810.2,1810.0,0.40681399]
[1743916175838,8.37518502,1810.2,1809.8,9.382484]
[1743916176037,8.37518502,1810.2,1810.1,0.40681399]
[1743916176238,8.37518502,1810.2,1809.9,0.1728162]
[1743916176535,8.37518502,1810.2,1810.1,0.40681399]
[1743916176736,8.37518502,1810.2,1809.8,9.382484]
[1743916176935,8.37518502,1810.2,1810.1,0.40681399]
[1743916177137,8.37518502,1810.2,1809.8,9.382484]
[1743916177444,8.37518502,1810.2,1809.9,0.9382484]
[1743916177632,8.37518502,1810.2,1809.9,1.51787874]
[1743916178041,8.37518502,1810.2,1809.9,1.34506239]
[1743916180108,8.37518502,1810.2,1809.9,0.40681399]
[1743916180443,8.37518502,1810.2,1809.8,13.242204]
[1743916180609,8.37518502,1810.2,1810.0,0.40681399]
[1743916181440,8.37518502,1810.2,1809.8,13.242204]
[1743916181736,8.37518502,1810.2,1810.1,0.40632224]
[1743916181930,8.37518502,1810.2,1809.9,0.17281582]
[1743916182126,8.37518502,1810.2,1810.1,0.40632224]
[1743916182328,8.37518502,1810.2,1809.9,0.17281582]
[1743916182527,8.37518502,1810.2,1810.1,0.40632224]
[1743916182727,8.37518502,1810.2,1809.8,12.8554]
[1743916182943,8.37518502,1810.2,1810.1,0.40632224]
[1743916183156,8.37518502,1810.2,1809.8,12.8554]
[1743916183615,8.37518502,1810.2,1809.9,0.57913778]
[1743916183816,2.5352629,1810.1,1809.9,0.57913778]
[1743916184147,2.5352629,1810.1,1809.9,0.40632224]
[1743916184445,2.5352629,1810.1,1809.8,12.8554]
[1743916184645,2.5352629,1810.1,1810.0,0.40632224]
[1743916184938,2.5352629,1810.1,1809.8,12.8554]
[1743916185141,2.5352629,1810.1,1810.0,0.40632224]
[1743916185332,2.5352629,1810.1,1809.9,0.172816]
[1743916185533,2.5352629,1810.1,1810.0,0.40632224]
[1743916185845,2.5352629,1810.1,1810.0,0.57913824]
[1743916189247,6.4024429,1810.1,1810.0,0.57913824]
[1743916189548,7.45759519,1810.1,1810.0,0.57913824]
[1743916190026,3.59041519,1810.1,1810.0,0.57913824]
[1743916190226,2.5352629,1810.1,1810.0,0.57913824]
[1743916202459,6.86718,1810.1,1810.0,0.57913824]
[1743916202673,7.14928,1810.1,1810.0,0.57913824]
[1743916203327,7.14928,1810.1,1810.0,0.40632224]
[1743916203759,3.86741,1810.0,1809.7,5.111]
[1743916204056,2.5352629,1809.9,1809.7,5.111]
[1743916204265,2.5352629,1809.9,1809.8,0.17283187]
[1743916213384,6.4028729,1809.9,1809.8,0.17283187]
[1743916216495,6.4028729,1809.9,1809.8,0.57903105]
[1743916223917,7.42990119,1809.9,1809.8,0.57903105]
[1743916224081,10.71200119,1809.9,1809.8,0.57903105]
[1743916224281,10.71200119,1809.9,1809.8,0.40619918]
[1743916224686,3.86809,1809.7,1809.5,5.1]
[1743916224881,2.5352629,1809.6,1809.5,5.1]
[1743916225080,6.6858229,1809.6,1809.1,4.67472]
[1743916225284,2.5352629,1809.4,1809.1,5.529144]
[1743916225585,2.5352629,1809.4,1809.1,10.633144]
[1743916225784,2.5352629,1809.4,1809.2,0.17287861]
[1743916226616,2.5352629,1809.4,1809.3,0.17287861]
[1743916231228,2.5352629,1809.4,1809.3,0.80577184]
[1743916232800,2.5352629,1809.4,1809.3,0.63289323]
[1743916233006,2.5352629,1809.4,1809.3,0.80576929]
[1743916233532,0.41302556,1809.5,1809.3,1.63116929]
[1743916233694,6.4037229,1809.6,1809.3,1.63116929]
[1743916234233,2.5352629,1809.6,1809.4,0.17287606]
[1743916234436,6.4035529,1809.6,1809.5,0.63296704]
[1743916235106,6.4035529,1809.6,1809.3,4.41881293]
[1743916235309,6.4035529,1809.6,1809.5,0.63296704]
[1743916235506,6.4035529,1809.6,1809.3,4.41881293]
[1743916235706,6.4035529,1809.6,1809.5,0.63296704]
[1743916235914,6.4035529,1809.6,1809.4,0.17286761]
[1743916236117,2.5352629,1809.6,1809.5,0.63296704]
[1743916236536,2.5352629,1809.6,1809.3,4.41881293]
[1743916236738,2.5352629,1809.6,1809.5,0.6339017]
[1743916236901,2.5352629,1809.6,1809.3,4.41881293]
[1743916237101,2.94077483,1809.6,1809.5,0.6339017]
[1743916237303,2.94077483,1809.6,1809.4,0.1728655]
[1743916237621,2.94077483,1809.6,1809.5,0.6339017]
[1743916238241,2.94077483,1809.6,1809.3,3.8688]
[1743916238538,2.94077483,1809.6,1809.4,0.6339017]
[1743916238837,2.94077483,1809.6,1809.3,3.8688]
[1743916239129,2.94077483,1809.6,1809.4,1.0207817]
[1743916239836,2.5352629,1809.6,1809.4,1.0207817]
[1743916241137,2.94513909,1809.6,1809.4,1.0207817]
[1743916242943,2.94513909,1809.6,1809.5,0.17286484]
[1743916243235,2.94513909,1809.6,1809.4,1.0207817]
[1743916243236,2.94513909,1809.6,1809.3,3.8688]
[1743916243396,2.94513909,1809.6,1809.4,1.0207817]
[1743916244147,2.94513909,1809.6,1809.4,4.8894517]
[1743916244352,2.94513909,1809.6,1809.4,5.7085517]
[1743916244514,2.94513909,1809.6,1809.5,0.17286146]
[1743916245159,3.22723909,1809.6,1809.5,0.80676316]
[1743916245326,7.09548909,1809.6,1809.5,0.6339017]
[1743916245659,7.09548909,1809.6,1809.2,8.55717]
[1743916245854,7.09548909,1809.6,1809.3,1.4896187]
[1743916246149,7.09548909,1809.6,1809.4,0.17286872]
[1743916246853,7.09548909,1809.6,1809.5,0.80672117]
[1743916249112,7.09548909,1809.6,1809.5,0.63385245]
[1743916249513,7.09548909,1809.6,1809.2,4.68807]
[1743916249712,7.09548909,1809.6,1809.5,0.63385245]
[1743916249935,7.09548909,1809.6,1809.3,0.17287379]
[1743916250124,7.09548909,1809.6,1809.5,0.63385245]
[1743916250325,7.09548909,1809.6,1809.5,0.17287379]
[1743916250526,7.09548909,1809.6,1809.5,0.80672624]
[1743916250726,7.09548909,1809.6,1809.5,0.17287379]
[1743916250925,7.09548909,1809.6,1809.5,0.80672624]
[1743916251130,7.09548909,1809.6,1809.5,0.17287379]
[1743916251322,6.81338909,1809.6,1809.5,0.80672624]
[1743916251543,6.81338909,1809.6,1809.5,0.17287379]
[1743916251743,6.81338909,1809.6,1809.5,0.80672624]
[1743916251909,6.81338909,1809.6,1809.5,0.17287379]
[1743916252114,6.81338909,1809.6,1809.5,0.80672624]
[1743916253550,2.94513909,1809.6,1809.5,0.80672624]
[1743916260467,6.81338909,1809.6,1809.5,0.80672624]
[1743916264280,2.94513909,1809.6,1809.5,0.80672624]
[1743916265476,6.81338909,1809.6,1809.5,0.80672624]
[1743916265662,6.81338909,1809.6,1809.5,0.17287379]
[1743916266378,6.81338909,1809.6,1809.5,0.80675083]
[1743916283316,2.94513909,1809.6,1809.5,0.80675083]
[1743916283606,5.91412272,1809.7,1809.5,2.05538991]
[1743916283991,5.91412272,1809.7,1809.6,0.17287379]
[1743916283992,9.78216272,1809.7,1809.6,0.17287379]